[Event "2nd Gujarat Open 2019"]
[Site "Ahmedabad, Gujarat"]
[Date "2019.09.25"]
[Round "6.3"]
[White "Chanda, Sandipan"]
[Black "Das, Sayantan"]
[Result "1/2-1/2"]
[ECO "D02"]
[WhiteElo "2529"]
[BlackElo "2434"]
[Annotator "ChessBase"]
[PlyCount "87"]
[EventDate "2019.09.22"]
[EventType "swiss"]
[EventCountry "IND"]
[SourceTitle "playchess.com"]
[Source "ChessBase"]
[SourceQuality "1"]
[TimeControl "5400+30"]

1. d4 d5 {[%emt 0:01:32]} 2. Nf3 {[%emt 0:00:00]} Nf6 {[%emt 0:00:09]} 3. Bf4 {[%emt 0:00:00]} e6 {[%emt 0:01:48]} 4. e3 {[%emt 0:00:06]} Bd6 {[%emt 0:00:17]} 5. Nbd2 {[%emt 0:00:24]} O-O {[%emt 0:00:30]} 6. Bd3 {[%emt 0:00:08]} b6 {[%emt 0:01:28]} 7. Qe2 {[%emt 0:00:10]} Bb7 {[%emt 0:00:29]} 8. O-O {[%emt 0:00:11]} c5 {[%emt 0:03:12]} 9. c3 {[%emt 0:00:11]} Qc7 {[%emt 0:01:25]} 10. Bxd6 {[%emt 0:02:57]} Qxd6 {[%emt 0:00:03]} 11. e4 {[%emt 0:00:33]} dxe4 {[%emt 0:07:31]} 12. Nxe4 {[%emt 0:01:12]} Nxe4 {[%emt 0:00:30]} 13. Bxe4 {[%emt 0:00:09]} Bxe4 {[%emt 0:00:13]} 14. Qxe4 {[%emt 0:00:07]} Nd7 {[%emt 0:00:08]} 15. Rad1 {[%emt 0:00:17]} Qc7 {[%emt 0:04:05]} 16. dxc5 {[%emt 0:07:12]} Nxc5 {[%emt 0:02:20]} 17. Qe5 {[%emt 0:00:14]} Rac8 {[%emt 0:03:29]} 18. Qxc7 {[%emt 0:09:18]} Rxc7 {[%emt 0:00:11]} 19. c4 {[%emt 0:00:13]} f6 {[%emt 0:11:01]} 20. Rd2 {[%emt 0:01:46]} e5 {[%emt 0:02:19]} 21. b3 {[%emt 0:08:07]} Kf7 {[%emt 0:04:32]} 22. Rfd1 {[%emt 0:00:29]} Rfc8 {[%emt 0:03:39]} 23. Ne1 {[%emt 0:00:43]} Ne4 {[%emt 0:03:35]} 24. Rd3 {[%emt 0:01:08]} Nc5 {[%emt 0:12:36]} 25. Rd5 {[%emt 0:00:51]} Ne4 {[%emt 0:01:48]} 26. Rc1 {[%emt 0:01:00]} Ke6 {[%emt 0:01:19]} 27. f3 {[%emt 0:00:23]} Nc5 {[%emt 0:02:13]} 28. Rcd1 {[%emt 0:00:21]} Ke7 {[%emt 0:01:35]} 29. Nc2 {[%emt 0:00:56]} Rd7 {[%emt 0:02:06]} 30. Rxd7+ {[%emt 0:03:43]} Nxd7 {[%emt 0:00:08]} 31. Ne3 {[%emt 0:00:14]} g6 {[%emt 0:01:36]} 32. Kf2 {[%emt 0:09:31]} Ke6 {[%emt 0:00:44]} 33. h4 {[%emt 0:01:40]} f5 {[%emt 0:01:56]} 34. g4 {[%emt 0:06:45]} Nf6 {[%emt 0:06:18]} 35. g5 {[%emt 0:03:13]} Nh5 {[%emt 0:04:27]} 36. a4 {[%emt 0:01:36]} Nf4 {[%emt 0:00:32]} 37. Nd5 {[%emt 0:01:04]} Nxd5 {[%emt 0:01:57]} 38. Rxd5 {[%emt 0:00:03]} Rc7 {[%emt 0:06:05]} 39. a5 {[%emt 0:06:44]} Rc5 {[%emt 0:01:17]} 40. axb6 {[%emt 0:00:12]} axb6 {[%emt 0:00:01]} 41. Rd8 {[%emt 0:00:24]} b5 {[%emt 0:00:46]} 42. Rh8 {[%emt 0:00:47]} bxc4 {[%emt 0:00:11]} 43. bxc4 {[%emt 0:00:03]} Rxc4 {[%emt 0:03:07]} 44. Rxh7 {[%emt 0:00:05]} 1/2-1/2

[Event "2nd Gujarat Open 2019"]
[Site "Ahmedabad, Gujarat"]
[Date "2019.09.25"]
[Round "6.4"]
[White "Eraschenkov, Denis"]
[Black "Deepan Chakkravarthy J."]
[Result "1/2-1/2"]
[ECO "A14"]
[WhiteElo "2390"]
[BlackElo "2539"]
[Annotator "ChessBase"]
[PlyCount "100"]
[EventDate "2019.09.22"]
[EventType "swiss"]
[EventCountry "IND"]
[SourceTitle "playchess.com"]
[Source "ChessBase"]
[SourceQuality "1"]
[TimeControl "5400+30"]

1. Nf3 {[%emt 0:00:00]} Nf6 {[%emt 0:06:26]} 2. c4 {[%emt 0:02:24]} e6 {[%emt 0:00:30]} 3. g3 {[%emt 0:02:25]} d5 {[%emt 0:00:26]} 4. Bg2 {[%emt 0:00:14]} Be7 {[%emt 0:02:00]} 5. O-O {[%emt 0:00:27]} O-O {[%emt 0:00:07]} 6. b3 {[%emt 0:01:23]} a5 {[%emt 0:05:05]} 7. Nc3 {[%emt 0:08:14]} b6 {[%emt 0:10:28]} 8. d4 {[%emt 0:12:21]} Bb7 {[%emt 0:00:19]} 9. Bb2 {[%emt 0:06:18]} Na6 {[%emt 0:07:31]} 10. e3 {[%emt 0:10:51]} Bb4 {[%emt 0:07:17]} 11. Qe2 {[%emt 0:01:48]} Qe7 {[%emt 0:00:17]} 12. Rac1 {[%emt 0:11:03]} Ne4 {[%emt 0:05:54]} 13. cxd5 {[%emt 0:11:13]} Bxc3 {[%emt 0:04:43]} 14. Bxc3 {[%emt 0:00:05]} exd5 {[%emt 0:03:50]} 15. Qb2 {[%emt 0:02:21]} h5 {[%emt 0:03:23]} 16. a3 {[%emt 0:01:34]} Rad8 {[%emt 0:03:51]} 17. b4 {[%emt 0:01:38]} axb4 {[%emt 0:02:07]} 18. axb4 {[%emt 0:02:22]} b5 {[%emt 0:03:43]} 19. Ne5 {[%emt 0:01:29]} Nd6 {[%emt 0:00:07]} 20. Ra1 {[%emt 0:03:33]} Ra8 {[%emt 0:01:35]} 21. Ra5 {[%emt 0:00:50]} c6 {[%emt 0:02:13]} 22. Rfa1 {[%emt 0:01:05]} Nc7 {[%emt 0:00:19]} 23. Qe2 {[%emt 0:01:01]} g6 {[%emt 0:00:24]} 24. Nd3 {[%emt 0:01:56]} Nc4 {[%emt 0:04:39]} 25. Ra7 {[%emt 0:00:34]} Rxa7 {[%emt 0:00:48]} 26. Rxa7 {[%emt 0:00:06]} Bc8 {[%emt 0:02:03]} 27. h3 {[%emt 0:03:34]} Re8 {[%emt 0:02:08]} 28. Nc5 {[%emt 0:00:59]} Qd6 {[%emt 0:04:51]} 29. e4 {[%emt 0:01:22]} Qd8 {[%emt 0:03:46]} 30. e5 {[%emt 0:01:34]} Ne6 {[%emt 0:00:09]} 31. Qf3 {[%emt 0:03:17]} Ng5 {[%emt 0:00:42]} 32. Qf4 {[%emt 0:02:35]} Bxh3 {[%emt 0:00:08]} 33. Bd2 {[%emt 0:00:45]} Nxd2 {[%emt 0:01:47]} 34. Qxd2 {[%emt 0:00:03]} Bxg2 {[%emt 0:00:32]} 35. Kxg2 {[%emt 0:00:07]} Ne6 {[%emt 0:05:37]} 36. Nd7 {[%emt 0:00:21]} Re7 {[%emt 0:02:16]} 37. Nf6+ {[%emt 0:00:11]} Kg7 {[%emt 0:00:03]} 38. Ra6 {[%emt 0:00:42]} Qc8 {[%emt 0:01:20]} 39. Ra1 {[%emt 0:01:00]} Rb7 {[%emt 0:03:55]} 40. Rh1 Qh8 {[%emt 0:00:21]} 41. Rh4 {[%emt 0:03:31]} Ra7 {[%emt 0:01:18]} 42. Qc3 {[%emt 0:01:10]} Ra6 {[%emt 0:00:24]} 43. Qf3 {[%emt 0:00:40]} Qh6 {[%emt 0:00:47]} 44. Ne8+ {[%emt 0:00:44]} Kf8 {[%emt 0:00:12]} 45. Nd6 {[%emt 0:00:19]} Ra7 {[%emt 0:00:06]} 46. Qc3 {[%emt 0:00:26]} Ra6 {[%emt 0:01:53]} 47. Qf3 {[%emt 0:02:10]} Ra7 {[%emt 0:00:02]} 48. Qc3 {[%emt 0:00:19]} Ra6 {[%emt 0:00:04]} 49. Nb7 {[%emt 0:00:17]} Ra2 {[%emt 0:00:27]} 50. Nd6 {[%emt 0:00:38]} Ra6 {[%emt 0:01:23]} 1/2-1/2

[Event "2nd Gujarat Open 2019"]
[Site "Ahmedabad, Gujarat"]
[Date "2019.09.25"]
[Round "6.5"]
[White "Shailesh, Dravid"]
[Black "Rahman, Ziaur"]
[Result "1/2-1/2"]
[ECO "B06"]
[WhiteElo "2299"]
[BlackElo "2492"]
[Annotator "ChessBase"]
[PlyCount "151"]
[EventDate "2019.09.22"]
[EventType "swiss"]
[EventCountry "IND"]
[SourceTitle "playchess.com"]
[Source "ChessBase"]
[SourceQuality "1"]
[TimeControl "5400+30"]

1. e4 {[%emt 0:00:00]} g6 {[%emt 0:01:01]} 2. d4 {[%emt 0:00:00]} Bg7 {[%emt 0:00:05]} 3. Nc3 {[%emt 0:00:00]} c6 {[%emt 0:00:29]} 4. Be3 {[%emt 0:01:04]} d5 {[%emt 0:01:21]} 5. Qd2 {[%emt 0:00:50]} dxe4 {[%emt 0:02:12]} 6. Nxe4 {[%emt 0:00:05]} Nd7 {[%emt 0:02:06]} 7. Nf3 {[%emt 0:00:44]} Ngf6 {[%emt 0:00:39]} 8. Nxf6+ {[%emt 0:00:05]} Nxf6 {[%emt 0:01:06]} 9. Bh6 {[%emt 0:03:28]} Bxh6 {[%emt 0:02:41]} 10. Qxh6 {[%emt 0:00:27]} Bg4 {[%emt 0:01:25]} 11. Qe3 {[%emt 0:06:00]} Bxf3 {[%emt 0:01:12]} 12. gxf3 {[%emt 0:00:38]} Qa5+ {[%emt 0:04:30]} 13. c3 {[%emt 0:01:14]} Nd5 {[%emt 0:02:09]} 14. Qd2 {[%emt 0:03:53]} O-O-O {[%emt 0:00:39]} 15. Bc4 {[%emt 0:00:42]} e6 {[%emt 0:04:18]} 16. O-O-O {[%emt 0:02:02]} Qc7 {[%emt 0:08:19]} 17. Kb1 {[%emt 0:01:23]} Nb6 {[%emt 0:01:18]} 18. Bd3 {[%emt 0:04:00]} c5 {[%emt 0:02:22]} 19. dxc5 {[%emt 0:00:56]} Qxc5 {[%emt 0:00:08]} 20. Qe3 {[%emt 0:00:33]} Qc7 {[%emt 0:00:19]} 21. c4 {[%emt 0:07:17]} Kb8 {[%emt 0:01:16]} 22. b3 {[%emt 0:00:08]} Rd7 {[%emt 0:03:25]} 23. h4 {[%emt 0:01:09]} h5 {[%emt 0:00:25]} 24. Rd2 {[%emt 0:01:59]} Rhd8 {[%emt 0:02:12]} 25. Rhd1 {[%emt 0:00:59]} Rd4 {[%emt 0:05:58]} 26. Be4 {[%emt 0:01:51]} Rxd2 {[%emt 0:00:32]} 27. Rxd2 {[%emt 0:00:05]} Rxd2 {[%emt 0:02:14]} 28. Qxd2 {[%emt 0:00:02]} f5 {[%emt 0:06:17]} 29. Bc2 {[%emt 0:01:57]} Qe7 {[%emt 0:01:58]} 30. Qe3 {[%emt 0:03:41]} Nd7 {[%emt 0:01:24]} 31. Qd4 {[%emt 0:00:27]} e5 {[%emt 0:02:24]} 32. Qd5 {[%emt 0:01:14]} Nf6 {[%emt 0:00:26]} 33. Qd2 {[%emt 0:00:38]} a6 {[%emt 0:03:28]} 34. Qg5 {[%emt 0:02:37]} Qf7 {[%emt 0:00:20]} 35. Qe3 {[%emt 0:00:13]} Nd7 {[%emt 0:00:58]} 36. f4 {[%emt 0:04:18]} Qf6 {[%emt 0:00:39]} 37. fxe5 {[%emt 0:00:07]} Qxe5 {[%emt 0:01:25]} 38. Qg5 {[%emt 0:00:53]} Qe1+ {[%emt 0:01:15]} 39. Kb2 {[%emt 0:00:06]} Qe6 {[%emt 0:00:26]} 40. Kb1 {[%emt 0:00:48]} Ka7 {[%emt 0:01:33]} 41. Qd2 {[%emt 0:00:30]} Qe7 {[%emt 0:00:52]} 42. Qd4+ {[%emt 0:02:39]} Kb8 {[%emt 0:01:40]} 43. a3 {[%emt 0:02:47]} Kc7 {[%emt 0:01:32]} 44. Ka2 {[%emt 0:04:08]} Qd6 {[%emt 0:05:20]} 45. Qe3 {[%emt 0:01:41]} Ne5 {[%emt 0:00:19]} 46. Qc3 {[%emt 0:11:02]} Ng4 {[%emt 0:02:57]} 47. f3 {[%emt 0:02:36]} Ne5 {[%emt 0:03:12]} 48. b4 {[%emt 0:02:12]} Nc6 {[%emt 0:00:26]} 49. b5 {[%emt 0:02:15]} axb5 {[%emt 0:03:54]} 50. cxb5 {[%emt 0:01:26]} Qd5+ {[%emt 0:00:05]} 51. Bb3 {[%emt 0:08:16]} Qxb5 {[%emt 0:00:05]} 52. Qg7+ {[%emt 0:00:09]} Kb8 {[%emt 0:04:09]} 53. Qxg6 {[%emt 0:00:15]} Qe2+ {[%emt 0:00:31]} 54. Kb1 {[%emt 0:01:51]} Qe1+ {[%emt 0:00:19]} 55. Kb2 {[%emt 0:00:18]} Qe5+ {[%emt 0:00:14]} 56. Ka2 {[%emt 0:01:02]} Nd4 {[%emt 0:00:22]} 57. Bc4 {[%emt 0:00:57]} Qh2+ {[%emt 0:03:05]} 58. Ka1 {[%emt 0:00:07]} Nc2+ {[%emt 0:00:20]} 59. Kb2 {[%emt 0:00:07]} Ne3+ {[%emt 0:00:12]} 60. Kc3 {[%emt 0:00:11]} Qc2+ {[%emt 0:00:39]} 61. Kd4 {[%emt 0:00:13]} Ka7 {[%emt 0:04:45]} 62. Qd6 {[%emt 0:02:51]} Qxc4+ {[%emt 0:05:57]} 63. Kxe3 {[%emt 0:00:04]} Qxh4 {[%emt 0:00:11]} 64. Qc5+ {[%emt 0:00:04]} Ka6 {[%emt 0:00:06]} 65. Qxf5 {[%emt 0:00:19]} Qe7+ {[%emt 0:00:25]} 66. Kf2 {[%emt 0:01:12]} Qxa3 {[%emt 0:00:41]} 67. Qxh5 {[%emt 0:00:04]} b5 {[%emt 0:00:29]} 68. Qh6+ {[%emt 0:00:44]} Ka5 {[%emt 0:00:12]} 69. Qd2+ {[%emt 0:00:44]} b4 {[%emt 0:00:14]} 70. Qd5+ {[%emt 0:00:19]} Ka4 {[%emt 0:00:08]} 71. Qd7+ {[%emt 0:00:16]} Kb3 {[%emt 0:00:22]} 72. Qd3+ {[%emt 0:00:08]} Ka2 {[%emt 0:00:30]} 73. Qc2+ {[%emt 0:00:23]} Ka1 {[%emt 0:01:10]} 74. Qd1+ {[%emt 0:00:04]} Kb2 {[%emt 0:00:12]} 75. Qd2+ {[%emt 0:00:08]} Kb1 {[%emt 0:00:25]} 76. Qd1+ {[%emt 0:00:03]} 1/2-1/2

[Event "2nd Gujarat Open 2019"]
[Site "Ahmedabad, Gujarat"]
[Date "2019.09.25"]
[Round "6.6"]
[White "Nguyen, Van Huy"]
[Black "Sahoo, Utkal Ranjan"]
[Result "1/2-1/2"]
[ECO "E10"]
[WhiteElo "2454"]
[BlackElo "2329"]
[Annotator "ChessBase"]
[PlyCount "60"]
[EventDate "2019.09.22"]
[EventType "swiss"]
[EventCountry "IND"]
[SourceTitle "playchess.com"]
[Source "ChessBase"]
[SourceQuality "1"]
[TimeControl "5400+30"]

1. d4 {[%emt 0:00:58]} Nf6 {[%emt 0:00:00]} 2. c4 {[%emt 0:00:28]} e6 {[%emt 0:00:00]} 3. Nf3 {[%emt 0:00:14]} d5 {[%emt 0:00:00]} 4. g3 {[%emt 0:00:05]} Bb4+ {[%emt 0:00:03]} 5. Nbd2 {[%emt 0:01:05]} O-O {[%emt 0:02:16]} 6. Bg2 {[%emt 0:00:28]} dxc4 {[%emt 0:00:54]} 7. O-O {[%emt 0:00:47]} b5 {[%emt 0:02:00]} 8. a3 {[%emt 0:00:52]} Be7 {[%emt 0:01:25]} 9. b3 {[%emt 0:00:50]} cxb3 {[%emt 0:06:52]} 10. Qxb3 {[%emt 0:00:10]} a6 {[%emt 0:01:25]} 11. Bb2 {[%emt 0:07:08]} Bb7 {[%emt 0:02:35]} 12. a4 {[%emt 0:02:29]} b4 {[%emt 0:01:09]} 13. Rfd1 {[%emt 0:05:19]} Nbd7 {[%emt 0:04:15]} 14. Nc4 {[%emt 0:06:18]} a5 {[%emt 0:03:01]} 15. Rac1 {[%emt 0:08:42]} Ra6 {[%emt 0:05:25]} 16. Nfd2 {[%emt 0:08:46]} Bxg2 {[%emt 0:02:11]} 17. Kxg2 {[%emt 0:00:04]} c5 {[%emt 0:01:12]} 18. Qf3 {[%emt 0:01:38]} cxd4 {[%emt 0:04:37]} 19. Bxd4 {[%emt 0:01:17]} Qa8 {[%emt 0:02:04]} 20. Nb3 {[%emt 0:00:28]} Nd5 {[%emt 0:02:47]} 21. Ne3 {[%emt 0:19:33]} Nxe3+ {[%emt 0:04:46]} 22. Bxe3 {[%emt 0:00:11]} Qxf3+ {[%emt 0:00:21]} 23. exf3 {[%emt 0:03:49]} Nf6 {[%emt 0:01:57]} 24. Bg5 {[%emt 0:01:50]} h6 {[%emt 0:03:07]} 25. Bxf6 {[%emt 0:00:21]} Bxf6 {[%emt 0:02:40]} 26. Rc7 {[%emt 0:00:59]} Raa8 {[%emt 0:01:42]} 27. Rdd7 {[%emt 0:02:30]} Rad8 {[%emt 0:00:55]} 28. Rxd8 {[%emt 0:13:10]} Rxd8 {[%emt 0:01:00]} 29. Nxa5 {[%emt 0:00:06]} Ra8 {[%emt 0:07:36]} 30. Rc5 {[%emt 0:00:34]} b3 {[%emt 0:02:12]} 1/2-1/2

[Event "2nd Gujarat Open 2019"]
[Site "Ahmedabad, Gujarat"]
[Date "2019.09.25"]
[Round "6.7"]
[White "Zia, Tahsin Tajwar"]
[Black "Neelotpal, Das"]
[Result "1/2-1/2"]
[ECO "A45"]
[WhiteElo "2142"]
[BlackElo "2433"]
[Annotator "NA"]
[PlyCount "61"]
[EventDate "2019.09.22"]
[EventType "swiss"]
[EventCountry "IND"]
[SourceTitle "playchess.com"]
[Source "ChessBase"]
[SourceQuality "1"]
[TimeControl "5400+30"]

1. d4 {[%emt 0:00:00]} Nf6 {[%emt 0:00:00]} 2. Bf4 {[%emt 0:00:13]} d6 {[%emt 0:00:35]} 3. Nf3 {[%emt 0:00:20]} g6 {[%emt 0:00:07]} 4. e3 {[%emt 0:00:11]} Bg7 {[%emt 0:00:07]} 5. h3 {[%emt 0:00:05]} b6 {[%emt 0:00:04]} 6. Be2 {[%emt 0:00:08]} Bb7 {[%emt 0:00:04]} 7. O-O {[%emt 0:00:14]} Nbd7 {[%emt 0:00:03]} 8. Bh2 {[%emt 0:00:14]} O-O {[%emt 0:00:07]} 9. a4 {[%emt 0:00:11]} a6 {[%emt 0:00:25]} 10. c4 {[%emt 0:00:46]} a5 {[%emt 0:01:43]} 11. Nc3 {[%emt 0:00:34]} Re8 {[%emt 0:01:45]} 12. Rc1 {[%emt 0:02:51]} e5 {[%emt 0:00:19]} 13. Nb5 {[%emt 0:00:49]} exd4 {[%emt 0:01:26]} 14. exd4 {[%emt 0:00:40]} Ne4 {[%emt 0:02:20]} 15. Re1 {[%emt 0:03:04]} Re7 {[%emt 0:05:52]} 16. Bd3 {[%emt 0:06:19]} Ndf6 {[%emt 0:00:21]} 17. Nd2 {[%emt 0:02:22]} Qd7 {[%emt 0:03:21]} 18. Nxe4 {[%emt 0:01:42]} Nxe4 {[%emt 0:00:06]} 19. f3 {[%emt 0:02:37]} Ng5 {[%emt 0:00:10]} 20. d5 {[%emt 0:06:56]} f5 {[%emt 0:07:18]} 21. Qd2 {[%emt 0:05:16]} Nf7 {[%emt 0:07:35]} 22. Rxe7 {[%emt 0:01:38]} Qxe7 {[%emt 0:00:04]} 23. Re1 {[%emt 0:00:11]} Qd7 {[%emt 0:00:02]} 24. f4 {[%emt 0:08:07]} c6 {[%emt 0:10:21]} 25. dxc6 {[%emt 0:00:56]} Qxc6 {[%emt 0:00:29]} 26. Bf1 {[%emt 0:01:45]} Re8 {[%emt 0:14:54]} 27. Rxe8+ {[%emt 0:01:48]} Qxe8 {[%emt 0:00:02]} 28. Bg3 {[%emt 0:00:16]} Qd8 {[%emt 0:03:38]} 29. b3 {[%emt 0:01:05]} d5 {[%emt 0:02:21]} 30. Bf2 {[%emt 0:01:05]} Bf8 {[%emt 0:01:03]} 31. cxd5 {[%emt 0:00:44]} 1/2-1/2

[Event "2nd Gujarat Open 2019"]
[Site "Ahmedabad, Gujarat"]
[Date "2019.09.25"]
[Round "6.8"]
[White "Himanshu, Sharma"]
[Black "Rathnakaran, K.."]
[Result "1-0"]
[ECO "C05"]
[WhiteElo "2408"]
[BlackElo "2325"]
[Annotator "NA"]
[PlyCount "83"]
[EventDate "2019.09.22"]
[EventType "swiss"]
[EventCountry "IND"]
[SourceTitle "playchess.com"]
[Source "ChessBase"]
[SourceQuality "1"]
[TimeControl "5400+30"]

1. e4 e6 {[%emt 0:01:24]} 2. d4 {[%emt 0:00:00]} d5 {[%emt 0:00:04]} 3. Nd2 {[%emt 0:00:00]} Nf6 {[%emt 0:00:03]} 4. e5 {[%emt 0:00:02]} Nfd7 {[%emt 0:00:03]} 5. c3 {[%emt 0:00:05]} c5 {[%emt 0:00:02]} 6. f4 {[%emt 0:00:05]} Nc6 {[%emt 0:00:05]} 7. Ndf3 {[%emt 0:00:04]} Be7 {[%emt 0:00:05]} 8. Bd3 {[%emt 0:02:16]} cxd4 {[%emt 0:00:07]} 9. cxd4 {[%emt 0:00:06]} Qa5+ {[%emt 0:00:02]} 10. Kf1 {[%emt 0:04:18]} f6 {[%emt 0:00:05]} 11. g3 {[%emt 0:00:37]} Nf8 {[%emt 0:01:13]} 12. Kg2 {[%emt 0:00:59]} Bd7 {[%emt 0:00:04]} 13. Ne2 {[%emt 0:03:16]} h5 {[%emt 0:00:15]} 14. a3 {[%emt 0:03:35]} h4 {[%emt 0:01:11]} 15. Be3 {[%emt 0:02:54]} h3+ {[%emt 0:00:11]} 16. Kf2 {[%emt 0:00:35]} Qb6 {[%emt 0:00:45]} 17. b4 {[%emt 0:01:43]} a5 {[%emt 0:01:22]} 18. b5 {[%emt 0:01:17]} Nd8 {[%emt 0:00:05]} 19. Nc3 {[%emt 0:01:48]} Nf7 {[%emt 0:00:21]} 20. Na4 {[%emt 0:01:10]} Qd8 {[%emt 0:00:06]} 21. Nc5 {[%emt 0:02:12]} b6 {[%emt 0:02:10]} 22. Nxd7 {[%emt 0:00:43]} Qxd7 {[%emt 0:00:05]} 23. g4 {[%emt 0:08:41]} Nh6 {[%emt 0:04:50]} 24. Rg1 {[%emt 0:00:45]} f5 {[%emt 0:00:04]} 25. g5 {[%emt 0:02:11]} Ng4+ {[%emt 0:02:44]} 26. Ke2 {[%emt 0:00:03]} Rc8 {[%emt 0:00:39]} 27. Qb3 {[%emt 0:00:43]} Kf7 {[%emt 0:00:35]} 28. Rac1 {[%emt 0:01:48]} Ng6 {[%emt 0:00:09]} 29. Rxc8 {[%emt 0:03:22]} Rxc8 {[%emt 0:00:08]} 30. Bd2 {[%emt 0:01:51]} Qd8 {[%emt 0:01:24]} 31. Rg3 {[%emt 0:01:28]} Nxh2 {[%emt 0:07:13]} 32. Nxh2 {[%emt 0:00:18]} Qh8 {[%emt 0:00:04]} 33. Bb1 {[%emt 0:10:28]} a4 {[%emt 0:00:05]} 34. Qd3 {[%emt 0:03:11]} Qh4 {[%emt 0:00:17]} 35. Qf3 {[%emt 0:00:34]} Rh8 {[%emt 0:00:04]} 36. Kf1 {[%emt 0:03:29]} Ke8 {[%emt 0:01:44]} 37. Bc2 {[%emt 0:00:28]} Kd7 {[%emt 0:00:06]} 38. Bxa4 {[%emt 0:02:14]} Qh7 {[%emt 0:04:12]} 39. Bd1 {[%emt 0:04:31]} Ke8 {[%emt 0:04:38]} 40. a4 {[%emt 0:02:00]} Kf7 {[%emt 0:00:04]} 41. Bc2 {[%emt 0:01:53]} Nh4 {[%emt 0:00:35]} 42. Qb3 {[%emt 0:00:53]} 1-0

[Event "2nd Gujarat Open 2019"]
[Site "Ahmedabad, Gujarat"]
[Date "2019.09.25"]
[Round "6.9"]
[White "Kiran, Manisha Mohanty"]
[Black "Karthikeyan, P.."]
[Result "0-1"]
[ECO "B06"]
[WhiteElo "2102"]
[BlackElo "2408"]
[Annotator "NA"]
[PlyCount "80"]
[EventDate "2019.09.22"]
[EventType "swiss"]
[EventCountry "IND"]
[SourceTitle "playchess.com"]
[Source "ChessBase"]
[SourceQuality "1"]
[TimeControl "5400+30"]

1. e4 {[%emt 0:02:17]} g6 {[%emt 0:00:00]} 2. d4 {[%emt 0:00:04]} Bg7 {[%emt 0:00:00]} 3. Nc3 {[%emt 0:00:40]} d6 {[%emt 0:00:00]} 4. Be3 {[%emt 0:00:08]} a6 {[%emt 0:00:10]} 5. Qd2 {[%emt 0:00:25]} b5 {[%emt 0:00:16]} 6. Bd3 {[%emt 0:00:06]} Nd7 {[%emt 0:01:01]} 7. a4 {[%emt 0:00:09]} b4 {[%emt 0:00:07]} 8. Nce2 {[%emt 0:00:05]} Ngf6 {[%emt 0:00:03]} 9. h3 {[%emt 0:00:18]} Bb7 {[%emt 0:01:59]} 10. Ng3 {[%emt 0:00:16]} h5 {[%emt 0:00:23]} 11. h4 {[%emt 0:14:16]} c5 {[%emt 0:01:28]} 12. c3 {[%emt 0:00:13]} Ng4 {[%emt 0:01:58]} 13. Nf3 {[%emt 0:01:52]} bxc3 {[%emt 0:04:21]} 14. bxc3 {[%emt 0:06:29]} Nxe3 {[%emt 0:00:15]} 15. Qxe3 {[%emt 0:00:24]} Qa5 {[%emt 0:02:54]} 16. Qd2 {[%emt 0:05:18]} Bh6 {[%emt 0:07:25]} 17. Qb2 {[%emt 0:00:40]} cxd4 {[%emt 0:00:34]} 18. O-O {[%emt 0:00:32]} Rb8 {[%emt 0:01:24]} 19. Nxd4 {[%emt 0:01:30]} Bxe4 {[%emt 0:02:40]} 20. Bb5 {[%emt 0:05:33]} Ba8 {[%emt 0:07:13]} 21. Bxd7+ {[%emt 0:09:52]} Kxd7 {[%emt 0:00:15]} 22. Qc2 {[%emt 0:10:36]} Rhc8 {[%emt 0:02:11]} 23. Nde2 {[%emt 0:01:32]} Qd5 {[%emt 0:02:52]} 24. f3 {[%emt 0:08:23]} Qd2 {[%emt 0:00:36]} 25. Qxd2 {[%emt 0:00:59]} Bxd2 {[%emt 0:00:03]} 26. Rfb1 {[%emt 0:00:28]} Be3+ {[%emt 0:09:38]} 27. Kf1 {[%emt 0:00:34]} Bc6 {[%emt 0:00:21]} 28. Ke1 {[%emt 0:06:34]} Rxb1+ {[%emt 0:02:11]} 29. Rxb1 {[%emt 0:00:02]} Bxa4 {[%emt 0:00:07]} 30. Nf1 {[%emt 0:00:05]} Ba7 {[%emt 0:01:52]} 31. Nd2 {[%emt 0:00:11]} Bc6 {[%emt 0:02:44]} 32. Ra1 {[%emt 0:00:23]} Bb5 {[%emt 0:01:27]} 33. c4 {[%emt 0:00:28]} Bxc4 {[%emt 0:00:10]} 34. Nxc4 {[%emt 0:00:09]} Rxc4 {[%emt 0:00:04]} 35. Rxa6 {[%emt 0:00:14]} Be3 {[%emt 0:01:31]} 36. g3 {[%emt 0:00:21]} e5 {[%emt 0:00:30]} 37. Ra3 {[%emt 0:01:10]} Bc5 {[%emt 0:00:06]} 38. Ra8 {[%emt 0:00:06]} Rb4 {[%emt 0:00:39]} 39. Rf8 {[%emt 0:00:34]} Ke7 {[%emt 0:00:36]} 40. Rh8 {[%emt 0:00:11]} Rb3 {[%emt 0:02:49]} 0-1

[Event "2nd Gujarat Open 2019"]
[Site "Ahmedabad, Gujarat"]
[Date "2019.09.25"]
[Round "6.10"]
[White "Murshed, Niaz"]
[Black "Pranav Vijay"]
[Result "1/2-1/2"]
[ECO "E16"]
[WhiteElo "2405"]
[BlackElo "2265"]
[Annotator "NA"]
[PlyCount "74"]
[EventDate "2019.09.22"]
[EventType "swiss"]
[EventCountry "IND"]
[SourceTitle "playchess.com"]
[Source "ChessBase"]
[SourceQuality "1"]
[TimeControl "5400+30"]

1. d4 {[%emt 0:04:36]} Nf6 {[%emt 0:00:00]} 2. c4 {[%emt 0:00:26]} e6 {[%emt 0:00:00]} 3. Nf3 {[%emt 0:01:12]} b6 {[%emt 0:01:04]} 4. g3 {[%emt 0:01:56]} Bb7 {[%emt 0:01:12]} 5. Bg2 {[%emt 0:00:07]} Bb4+ {[%emt 0:00:23]} 6. Nbd2 {[%emt 0:03:36]} O-O {[%emt 0:00:36]} 7. O-O {[%emt 0:00:08]} Bxd2 {[%emt 0:00:49]} 8. Bxd2 {[%emt 0:01:49]} d6 {[%emt 0:01:36]} 9. Bc3 {[%emt 0:03:37]} Nbd7 {[%emt 0:02:46]} 10. Qc2 {[%emt 0:01:02]} c5 {[%emt 0:03:51]} 11. Rad1 {[%emt 0:09:12]} Qc7 {[%emt 0:01:51]} 12. dxc5 {[%emt 0:10:46]} bxc5 {[%emt 0:01:03]} 13. Ne1 {[%emt 0:07:40]} Bxg2 {[%emt 0:05:44]} 14. Nxg2 {[%emt 0:00:09]} a5 {[%emt 0:03:18]} 15. Rd2 {[%emt 0:06:45]} a4 {[%emt 0:03:02]} 16. Rfd1 {[%emt 0:01:03]} Ra6 {[%emt 0:00:16]} 17. Ne3 {[%emt 0:01:55]} Rb8 {[%emt 0:01:41]} 18. f3 {[%emt 0:02:14]} h5 {[%emt 0:03:02]} 19. Kg2 {[%emt 0:00:45]} Rbb6 {[%emt 0:03:09]} 20. h4 {[%emt 0:02:22]} Qd8 {[%emt 0:15:31]} 21. Kf2 {[%emt 0:05:38]} Qe7 {[%emt 0:01:16]} 22. Rd3 {[%emt 0:03:05]} Ne8 {[%emt 0:02:49]} 23. Ng2 {[%emt 0:02:32]} Rb7 {[%emt 0:09:50]} 24. R3d2 {[%emt 0:04:36]} Ndf6 {[%emt 0:07:49]} 25. Ne3 {[%emt 0:06:28]} Rd7 {[%emt 0:02:25]} 26. Kg2 {[%emt 0:02:42]} Rd8 {[%emt 0:01:18]} 27. Kf2 {[%emt 0:01:53]} Qc7 {[%emt 0:02:17]} 28. Rd3 {[%emt 0:01:46]} Raa8 {[%emt 0:01:00]} 29. Qd2 {[%emt 0:01:03]} Qe7 {[%emt 0:00:11]} 30. Be5 {[%emt 0:02:35]} Ra6 {[%emt 0:01:42]} 31. Bc3 {[%emt 0:01:13]} Rb8 {[%emt 0:03:29]} 32. Qc2 {[%emt 0:00:36]} Rb7 {[%emt 0:01:37]} 33. R3d2 {[%emt 0:00:18]} Ra8 {[%emt 0:00:18]} 34. Kg2 {[%emt 0:01:00]} Nd7 {[%emt 0:01:14]} 35. Qe4 {[%emt 0:00:25]} Ndf6 {[%emt 0:00:41]} 36. Qc2 {[%emt 0:01:06]} Nd7 37. Bf6 Ndxf6 1/2-1/2